bitfinex/quotes_BTCUSD_20240727
["timestamp","ask_amount","ask_price","bid_price","bid_amount"]
[1722091749193,0.02884,69118.0,69117.0,0.02795928]
[1722091749418,0.02884,69118.0,69117.0,0.17475928]
[1722091749617,0.15952,69118.0,69117.0,0.17475928]
[1722091749891,0.14552,69118.0,69117.0,0.17375928]
[1722091750078,0.44588,69118.0,69117.0,0.15697407]
[1722091750231,0.44588,69118.0,69117.0,0.09227407]
[1722091750619,0.44588,69118.0,69117.0,0.01017407]
[1722091750620,0.73424,69118.0,69117.0,0.01017407]
[1722091750824,1.0266,69118.0,69117.0,0.01017407]
[1722091751332,0.73424,69118.0,69117.0,0.01017407]
[1722091751533,1.0136,69118.0,69117.0,0.01017407]
[1722091751984,0.72424,69118.0,69117.0,0.01017407]
[1722091752183,0.00084,69118.0,69117.0,0.15697407]
[1722091752321,0.00084,69118.0,69117.0,0.3184967]
[1722091752745,0.00084,69118.0,69117.0,0.1738147]
[1722091752944,0.00084,69118.0,69117.0,0.1758147]
[1722091753169,0.00084,69118.0,69117.0,0.6098607]
[1722091753371,0.00084,69118.0,69117.0,0.6078607]
[1722091753603,0.00184,69118.0,69117.0,0.8992247]
[1722091753759,0.00184,69118.0,69117.0,0.3214967]
[1722091754370,0.00184,69118.0,69117.0,0.3204967]
[1722091754574,0.00084,69118.0,69117.0,0.3184967]
[1722091754972,0.00284,69118.0,69117.0,0.6108607]
[1722091755376,0.00284,69118.0,69117.0,0.9002247]
[1722091756008,0.00284,69118.0,69117.0,1.2125887]
[1722091757443,0.00284,69118.0,69117.0,1.19574807]
[1722091757595,0.00284,69118.0,69117.0,0.90638407]
[1722091762159,0.00284,69118.0,69117.0,0.61702007]
[1722091762708,0.00284,69118.0,69117.0,0.90638407]
[1722091765918,0.00284,69118.0,69117.0,0.61702007]
[1722091766734,0.00284,69118.0,69117.0,0.90638407]
[1722091770694,0.00284,69118.0,69117.0,0.91218207]
[1722091773964,0.00284,69118.0,69117.0,0.33345407]
[1722091774397,0.00284,69118.0,69117.0,0.10107207]
[1722091774592,0.2922,69118.0,69117.0,0.01897207]
[1722091774823,0.43688,69118.0,69117.0,0.01897207]
[1722091775019,0.78744,69118.0,69117.0,0.01897207]
[1722091775451,0.49808,69118.0,69117.0,0.01317407]
[1722091775977,0.49708,69118.0,69117.0,0.01217407]
[1722091776186,0.86694,69118.0,69117.0,0.01217407]
[1722091776388,0.86594,69118.0,69117.0,0.01117407]
[1722091776587,0.86694,69118.0,69117.0,0.01217407]
[1722091778633,1.1563,69118.0,69117.0,0.01217407]
[1722091779399,1.1553,69118.0,69117.0,0.01017407]
[1722091779812,1.1593,69118.0,69117.0,0.01017407]
[1722091780264,1.44866,69118.0,69117.0,0.01017407]
[1722091781548,1.44766,69118.0,69117.0,0.01017407]
[1722091781861,1.47537011,69118.0,69117.0,0.01017407]
[1722091785015,1.58009727,69118.0,69117.0,0.01017407]
[1722091785318,1.65738716,69118.0,69117.0,0.01017407]
[1722091785473,1.55266,69118.0,69117.0,0.01017407]
[1722091786533,1.83402,69118.0,69117.0,0.01017407]
[1722091786756,1.55566,69118.0,69117.0,0.01017407]
[1722091786966,1.56566,69118.0,69117.0,0.01017407]
[1722091787174,1.55566,69118.0,69117.0,0.01017407]
[1722091787343,1.68709795,69118.0,69117.0,0.01017407]
[1722091787726,1.97645795,69118.0,69117.0,0.01017407]
[1722091788226,1.68709795,69118.0,69117.0,0.01017407]
[1722091788752,1.70109795,69118.0,69117.0,0.01017407]
[1722091789094,1.57266,69118.0,69117.0,0.01017407]
[1722091793635,1.59537224,69118.0,69117.0,0.01017407]
[1722091802772,1.88473224,69118.0,69117.0,0.01017407]
[1722091803337,1.87073224,69118.0,69117.0,0.01017407]
[1722091803699,1.88473224,69118.0,69117.0,0.01017407]
[1722091804113,2.02099181,69118.0,69117.0,0.01017407]
[1722091804513,2.03499181,69118.0,69117.0,0.01017407]
[1722091804714,1.88473224,69118.0,69117.0,0.01017407]
[1722091805503,1.86202,69118.0,69117.0,0.01017407]
[1722091806023,2.07362,69118.0,69117.0,0.01017407]
[1722091808344,1.78426,69118.0,69117.0,0.01017407]
[1722091808603,1.57266,69118.0,69117.0,0.01017407]
[1722091811019,1.59323639,69118.0,69117.0,0.01017407]
[1722091811347,1.57266,69118.0,69117.0,0.01017407]
[1722091811566,1.2028,69118.0,69117.0,0.01017407]
[1722091812731,1.1888,69118.0,69117.0,0.01017407]
[1722091813090,1.22551167,69118.0,69117.0,0.01017407]
[1722091813430,1.1888,69118.0,69117.0,0.01017407]
[1722091814046,1.1848,69118.0,69117.0,0.01017407]
[1722091814412,1.1988,69118.0,69117.0,0.01017407]
[1722091814817,1.1848,69118.0,69117.0,0.01017407]
[1722091814954,1.1708,69118.0,69117.0,0.01017407]
[1722091815163,1.1838,69118.0,69117.0,0.01017407]
[1722091815357,1.1978,69118.0,69117.0,0.01017407]
[1722091815744,1.1838,69118.0,69117.0,0.01017407]
[1722091816142,1.1958,69118.0,69117.0,0.01017407]
[1722091816552,1.21851172,69118.0,69117.0,0.01017407]
[1722091816763,1.20551172,69118.0,69117.0,0.01017407]
[1722091817170,1.21851172,69118.0,69117.0,0.01017407]
[1722091817770,1.1958,69118.0,69117.0,0.01017407]
[1722091817978,1.1346,69118.0,69117.0,0.01017407]
[1722091818202,1.1346,69118.0,69117.0,0.01172827]
[1722091818482,1.1346,69118.0,69117.0,0.0015542]
[1722091821168,1.15731148,69118.0,69117.0,0.0015542]
[1722091821560,1.1346,69118.0,69117.0,0.0015542]
[1722091824808,1.1573114,69118.0,69117.0,0.0015542]
[1722091825224,1.2192,69118.0,69117.0,0.0015542]
[1722091826211,0.74524,69118.0,69117.0,0.15472742]
[1722091826414,0.45588,69118.0,69117.0,0.16366291]
[1722091827093,0.025,69118.0,69117.0,0.16366291]
[1722091827295,0.025,69118.0,69117.0,0.24826291]
[1722091827486,0.025,69118.0,69117.0,0.16366291]
[1722091827933,0.012,69118.0,69117.0,0.16366291]
[1722091828343,0.016,69118.0,69117.0,0.16366291]
[1722091828544,0.03870852,69118.0,69117.0,0.23908969]
[1722091828784,0.03870852,69118.0,69117.0,0.38532589]
[1722091828929,0.03470852,69118.0,69117.0,0.38532589]
[1722091829130,0.03470852,69118.0,69117.0,0.15604389]
[1722091829382,0.03470852,69118.0,69117.0,0.15448969]
[1722091829383,0.02270852,69118.0,69117.0,0.15448969]
[1722091829580,0.144671,69122.0,69117.0,0.15448969]
[1722091829783,0.14551,69123.0,69119.0,0.0792]
[1722091830204,0.14551,69123.0,69120.0,0.0104204]
[1722091830552,0.144671,69122.0,69120.0,0.0104204]
[1722091830819,0.00084,69123.0,69120.0,0.04478037]
[1722091831020,0.00084,69123.0,69121.0,0.288673]
[1722091831021,0.001,69122.0,69121.0,0.288673]
[1722091831221,0.001,69122.0,69121.0,0.144]
[1722091831487,0.00084,69123.0,69122.0,0.0792]
[1722091831688,0.00084,69123.0,69122.0,0.18045165]
[1722091832102,0.00084,69123.0,69122.0,0.19086909]
[1722091832570,0.00084,69123.0,69122.0,0.15441744]
[1722091832945,0.02354593,69123.0,69122.0,0.15441744]
[1722091833147,0.00084,69123.0,69122.0,0.15441744]
[1722091833754,0.00184,69123.0,69122.0,0.15541744]
[1722091834075,0.002,69123.0,69122.0,0.15541744]
[1722091834251,0.002,69123.0,69122.0,0.15697164]
[1722091834252,0.436008,69123.0,69122.0,0.15697164]
[1722091834628,0.436008,69123.0,69122.0,0.09217164]
[1722091834854,0.434008,69123.0,69122.0,0.09061744]
[1722091835243,0.434008,69123.0,69122.0,0.0812]
[1722091835244,0.435008,69123.0,69122.0,0.0812]
[1722091835486,0.145669,69123.0,69122.0,0.0812]
[1722091835689,0.435008,69123.0,69122.0,0.0812]
[1722091835872,0.435008,69123.0,69122.0,0.09286019]
[1722091836164,0.435008,69123.0,69122.0,0.01166019]
[1722091836165,1.151886,69123.0,69122.0,0.01166019]
[1722091836598,1.46393383,69123.0,69122.0,0.002]
[1722091836819,1.441225,69123.0,69122.0,0.002]
[1722091837343,1.012774,69117.0,69116.0,0.000924]
[1722091837742,1.012774,69117.0,69116.0,0.012607]
[1722091839308,1.076374,69117.0,69116.0,0.012607]
[1722091839712,1.151974,69117.0,69116.0,0.000924]
[1722091839913,1.46374606,69117.0,69116.0,0.000924]
[1722091840094,1.541338,69117.0,69116.0,0.000924]
[1722091841304,1.85341371,69117.0,69116.0,0.000924]
[1722091841504,1.86641371,69117.0,69116.0,0.000924]
[1722091841704,1.843702,69117.0,69116.0,0.000924]
[1722091842036,1.830702,69117.0,69116.0,0.000924]
[1722091842374,1.844702,69117.0,69116.0,0.000924]
[1722091843060,1.86971709,69117.0,69116.0,0.000924]
[1722091843269,2.29534066,69117.0,69116.0,0.000924]
[1722091845118,2.30934066,69117.0,69116.0,0.000924]
[1722091845525,2.231602,69112.0,69111.0,0.886244]
[1722091845658,2.45699136,69112.0,69111.0,0.886244]
[1722091845859,2.55699136,69112.0,69111.0,0.90383849]
[1722091846057,2.40673179,69112.0,69111.0,0.90383849]
[1722091847696,2.42073179,69112.0,69111.0,0.90383849]
[1722091848308,2.43473179,69112.0,69111.0,0.90383849]
[1722091849014,2.42073179,69112.0,69111.0,0.90383849]
[1722091849185,2.43473179,69112.0,69111.0,0.90383849]
[1722091849389,2.58499136,69112.0,69111.0,0.90383849]
[1722091849793,2.57099136,69112.0,69111.0,0.90383849]
[1722091850391,2.48186157,69112.0,69111.0,0.90383849]
[1722091850800,2.49586157,69112.0,69111.0,0.90383849]
[1722091851586,2.50986157,69112.0,69111.0,0.90383849]
[1722091851781,2.49586157,69112.0,69111.0,0.90383849]
[1722091852137,2.50986157,69112.0,69111.0,0.90383849]
[1722091852526,2.49586157,69112.0,69111.0,0.90383849]
[1722091853435,1.555432,69112.0,69111.0,0.90383849]
[1722091853607,1.479832,69112.0,69111.0,0.90383849]
[1722091854934,1.465832,69112.0,69111.0,0.90383849]
[1722091855316,1.705232,69112.0,69111.0,0.90383849]
[1722091855700,1.691232,69112.0,69111.0,0.90383849]
[1722091855902,1.84149157,69112.0,69111.0,0.90383849]
[1722091856309,1.92169157,69112.0,69111.0,0.90383849]
[1722091856922,1.90769157,69112.0,69111.0,0.90383849]
[1722091857125,1.92169157,69112.0,69111.0,0.90383849]
[1722091858347,1.93682207,69112.0,69111.0,0.90383849]
[1722091858936,1.95082207,69112.0,69111.0,0.90383849]
[1722091859771,2.24020707,69112.0,69111.0,0.90383849]
[1722091860552,1.8005625,69112.0,69111.0,0.90383849]
[1722091862410,2.0899475,69112.0,69111.0,0.90383849]
[1722091862570,1.8005625,69112.0,69111.0,0.90383849]
[1722091863135,2.0899475,69112.0,69111.0,0.90383849]
[1722091867646,2.10183767,69112.0,69111.0,0.90383849]
[1722091867849,2.25209724,69112.0,69111.0,0.90383849]
[1722091868051,2.24020707,69112.0,69111.0,0.84596049]
[1722091868282,2.24020707,69112.0,69111.0,0.75914349]
[1722091868454,2.52959207,69112.0,69111.0,0.75914349]
[1722091869065,2.52959207,69112.0,69111.0,0.73020449]
[1722091869238,2.52959207,69112.0,69111.0,0.67232649]
[1722091869444,2.52959207,69112.0,69111.0,0.61444849]
[1722091869850,2.51559207,69112.0,69111.0,0.61444849]
[1722091870050,2.50159207,69112.0,69111.0,0.55657049]
[1722091870251,2.60263207,69112.0,69111.0,0.44117857]
[1722091870491,2.63963207,69112.0,69111.0,0.36356677]
[1722091870700,2.65151634,69112.0,69111.0,0.36356677]
[1722091871096,2.62563207,69112.0,69111.0,0.24780677]
[1722091871299,2.1629875,69112.0,69111.0,0.21886677]
[1722091871751,1.8645475,69112.0,69111.0,0.21886677]
[1722091871962,2.0619475,69112.0,69111.0,0.21886677]
[1722091873779,2.0899475,69112.0,69111.0,0.21886677]
[1722091873979,1.8005625,69112.0,69111.0,0.21886677]
[1722091874217,1.9817475,69112.0,69111.0,0.21886677]
[1722091874384,1.9957475,69112.0,69111.0,0.21886677]
[1722091874591,2.16000707,69112.0,69111.0,0.21886677]
[1722091874894,2.14600707,69112.0,69111.0,0.21886677]
[1722091875093,2.16000707,69112.0,69111.0,0.21886677]
[1722091875307,2.14600707,69112.0,69111.0,0.21886677]
[1722091876292,2.14684707,69112.0,69111.0,0.21886677]
[1722091876592,2.14684707,69112.0,69101.0,0.002]
[1722091876593,1.302381,69104.0,69101.0,0.002]
[1722091876831,1.402381,69104.0,69101.0,0.002]
[1722091877036,1.402381,69104.0,69103.0,0.091854]
[1722091878423,1.416381,69104.0,69103.0,0.091854]
[1722091878966,1.430381,69104.0,69103.0,0.091854]
[1722091879680,1.140963,69104.0,69103.0,0.091854]
[1722091881187,1.15214892,69104.0,69103.0,0.091854]
[1722091882208,1.17486627,69104.0,69103.0,0.091854]
[1722091884305,0.87426235,69104.0,69103.0,0.091854]
[1722091885441,1.16368035,69104.0,69103.0,0.091854]
[1722091885648,0.87426235,69104.0,69103.0,0.091854]
[1722091885851,1.16368035,69104.0,69103.0,0.091854]
[1722091886057,0.87426235,69104.0,69103.0,0.091854]
[1722091886458,0.96431661,69104.0,69103.0,0.091854]
[1722091886777,1.25373461,69104.0,69103.0,0.091854]
[1722091887317,1.25373461,69104.0,69103.0,0.008954]
[1722091887972,1.29141726,69104.0,69103.0,0.008954]
[1722091888655,1.58083526,69104.0,69103.0,0.008954]
[1722091891218,1.60355244,69104.0,69103.0,0.008954]
[1722091891357,1.58083526,69104.0,69103.0,0.008954]
[1722091892366,1.87025326,69104.0,69103.0,0.008954]
[1722091892703,1.073394,69102.0,69101.0,0.002]
[1722091892906,1.073394,69102.0,69096.0,0.008954]
[1722091892907,1.073468,69097.0,69096.0,0.008954]
[1722091893126,0.72366,69093.0,69092.0,0.008954]
[1722091893323,1.613988,69093.0,69092.0,0.008954]
[1722091894637,1.627988,69093.0,69092.0,0.008954]
[1722091895220,1.43930828,69093.0,69092.0,0.008954]
[1722091895430,1.43930828,69093.0,69092.0,0.087354]
[1722091895613,1.42530828,69093.0,69092.0,0.087354]
[1722091896740,1.43930828,69093.0,69092.0,0.087354]
[1722091896961,1.45330828,69093.0,69092.0,0.087354]
[1722091897552,1.43930828,69093.0,69092.0,0.087354]
[1722091897760,1.45330828,69093.0,69092.0,0.087354]
[1722091898335,1.66055216,69093.0,69092.0,0.008954]
[1722091898760,1.95001616,69093.0,69092.0,0.008954]
[1722091898967,1.96131218,69093.0,69092.0,0.008954]
[1722091899169,2.17271218,69093.0,69092.0,0.008954]
[1722091899809,2.15871218,69093.0,69092.0,0.008954]
[1722091900128,2.17271218,69093.0,69092.0,0.008954]
[1722091900604,2.1359919,69093.0,69092.0,0.008954]
[1722091900974,2.1499919,69093.0,69092.0,0.008954]
[1722091903492,2.17271243,69093.0,69092.0,0.008954]
[1722091903892,2.1499919,69093.0,69092.0,0.008954]
[1722091907862,1.868939,69085.0,69084.0,0.008954]
[1722091908298,1.968939,69085.0,69084.0,0.008954]
[1722091909357,2.049539,69085.0,69084.0,0.008954]
[1722091910141,2.063539,69085.0,69084.0,0.008954]
[1722091910338,2.063539,69085.0,69081.0,0.010954]
[1722091910339,1.67291,69082.0,69081.0,1e-06]
[1722091910541,0.434328,69072.0,69071.0,0.002]
[1722091910746,1.470732,69072.0,69071.0,0.01986072]
[1722091911000,2.049836,69072.0,69071.0,0.002]
[1722091911191,2.1228606,69072.0,69071.0,0.002]
[1722091912611,2.049836,69072.0,69071.0,0.002]
[1722091912824,1.30306,69068.0,69067.0,0.4718]
[1722091912957,0.434391,69062.0,69061.0,0.093054]
[1722091913165,1.113579,69062.0,69061.0,0.11093087]
[1722091913366,1.113579,69062.0,69061.0,0.093054]
[1722091913587,1.403173,69062.0,69061.0,0.093054]
[1722091914432,1.414173,69062.0,69061.0,0.093054]
[1722091914589,1.414173,69062.0,69061.0,0.010954]
[1722091914771,1.423173,69062.0,69061.0,0.010954]
[1722091915238,1.45654733,69062.0,69061.0,0.010954]
[1722091915589,1.423173,69062.0,69061.0,0.010954]
[1722091916213,1.488473,69062.0,69061.0,0.010954]
[1722091916667,1.423173,69062.0,69061.0,0.010954]
[1722091916892,1.133579,69062.0,69061.0,0.010954]
[1722091917109,0.843985,69062.0,69061.0,0.153954]
[1722091918035,1.133579,69062.0,69061.0,0.153954]
[1722091918647,0.843985,69062.0,69061.0,0.153954]
[1722091919420,0.02,69062.0,69061.0,0.153954]
[1722091919635,0.743985,69062.0,69061.0,0.153954]
[1722091919786,0.164797,69062.0,69061.0,0.153954]
[1722091920148,0.454391,69062.0,69061.0,0.153954]
[1722091920747,0.443391,69062.0,69061.0,0.153954]
[1722091920976,0.153797,69062.0,69061.0,0.153954]
[1722091921172,0.435391,69062.0,69061.0,0.153954]
[1722091921736,0.436391,69062.0,69061.0,0.153954]
[1722091923128,0.725985,69062.0,69061.0,0.153954]
[1722091923334,0.146797,69062.0,69061.0,0.153954]
[1722091923555,0.436391,69062.0,69061.0,0.153954]
[1722091924342,0.725985,69062.0,69061.0,0.153954]
[1722091924926,0.723985,69062.0,69061.0,0.153954]
[1722091925306,0.727985,69062.0,69061.0,0.153954]
[1722091926039,0.729985,69062.0,69061.0,0.153954]
[1722091927068,0.729985,69062.0,69061.0,0.1693494]
[1722091927264,1.019579,69062.0,69061.0,0.153954]
[1722091927971,1.019579,69062.0,69061.0,0.010954]
[1722091928242,1.409173,69062.0,69061.0,0.010954]
[1722091928442,1.407173,69062.0,69061.0,0.010954]
[1722091928848,1.409173,69062.0,69061.0,0.010954]
[1722091929254,1.403173,69062.0,69061.0,0.010954]
[1722091929429,1.411173,69062.0,69061.0,0.010954]
[1722091929635,1.420173,69062.0,69061.0,0.010954]
[1722091929827,1.412173,69062.0,69061.0,0.010954]
[1722091930161,1.423173,69062.0,69061.0,0.010954]
[1722091932356,1.52002155,69062.0,69061.0,0.010954]
[1722091932561,1.423173,69062.0,69061.0,0.010954]
[1722091932961,1.43398432,69062.0,69061.0,0.010954]
[1722091933162,1.78508432,69062.0,69061.0,0.010954]
[1722091933793,2.07467832,69062.0,69061.0,0.010954]
[1722091935218,1.57368432,69062.0,69061.0,0.010954]
[1722091935731,1.56468432,69062.0,69061.0,0.010954]
[1722091935931,1.55368432,69062.0,69061.0,0.010954]
[1722091936184,1.49098432,69062.0,69061.0,0.010954]
[1722091936383,1.50498432,69062.0,69061.0,0.010954]
[1722091936582,1.49098432,69062.0,69061.0,0.010954]
[1722091936767,1.50498432,69062.0,69061.0,0.010954]
[1722091936964,1.42798432,69062.0,69061.0,0.010954]
[1722091937117,1.13839032,69062.0,69061.0,0.010954]
[1722091937320,0.86279632,69062.0,69061.0,0.075454]
[1722091937535,0.86279632,69062.0,69061.0,0.010954]
[1722091937736,1.15239032,69062.0,69061.0,0.010954]
[1722091938528,0.86279632,69062.0,69061.0,0.010954]
[1722091939108,1.15239032,69062.0,69061.0,0.010954]
[1722091941594,1.29209032,69062.0,69061.0,0.010954]
[1722091941757,1.58168432,69062.0,69061.0,0.010954]
[1722091943511,1.56768432,69062.0,69061.0,0.010954]
[1722091944807,1.58168432,69062.0,69061.0,0.010954]
[1722091945033,1.50498432,69062.0,69061.0,0.010954]
[1722091945209,1.50498432,69062.0,69061.0,0.00714479]
[1722091945676,1.49098432,69062.0,69061.0,0.00714479]
[1722091945952,1.50498432,69062.0,69061.0,0.00714479]
[1722091946159,1.21539032,69062.0,69061.0,0.00714479]
[1722091946363,1.13839032,69062.0,69061.0,0.00714479]
[1722091946539,1.12439032,69062.0,69061.0,0.00714479]
[1722091946739,1.44198432,69062.0,69061.0,0.00714479]
[1722091946904,1.42798432,69062.0,69061.0,0.00714479]
[1722091947347,1.15239032,69062.0,69061.0,0.00714479]
[1722091947559,1.13839032,69062.0,69061.0,0.00714479]
[1722091947966,1.15239032,69062.0,69061.0,0.00714479]
[1722091948145,1.13839032,69062.0,69061.0,0.00714479]
[1722091948321,1.2538264,69062.0,69061.0,0.00714479]
[1722091948764,1.5434204,69062.0,69061.0,0.00714479]
[1722091949145,1.5294204,69062.0,69061.0,0.00714479]
[1722091949533,1.5434204,69062.0,69061.0,0.00714479]
[1722091949734,1.15239032,69062.0,69061.0,0.00714479]
[1722091949936,1.13839032,69062.0,69061.0,0.00714479]
[1722091950172,1.12439032,69062.0,69061.0,0.00714479]
[1722091950498,1.15239032,69062.0,69061.0,0.00714479]
[1722091951252,1.13839032,69062.0,69061.0,0.00714479]
[1722091951630,1.14939032,69062.0,69061.0,0.00714479]
[1722091952485,1.13539032,69062.0,69061.0,0.00714479]
[1722091952700,1.14739032,69062.0,69061.0,0.00714479]
[1722091953216,1.13539032,69062.0,69061.0,0.00714479]
[1722091953607,1.14939032,69062.0,69061.0,0.00714479]
[1722091953824,1.13839032,69062.0,69061.0,0.00714479]
[1722091954026,1.15239032,69062.0,69061.0,0.00714479]
[1722091954392,1.42798432,69062.0,69061.0,0.00714479]
[1722091954851,1.44098432,69062.0,69061.0,0.00714479]
[1722091955344,1.42798432,69062.0,69061.0,0.00714479]
[1722091956048,1.44198432,69062.0,69061.0,0.00714479]
[1722091956252,1.45389882,69062.0,69061.0,0.00714479]
[1722091956459,1.44198432,69062.0,69061.0,0.00714479]
[1722091956661,1.4398988,69062.0,69061.0,0.00714479]
[1722091957036,1.4538988,69062.0,69061.0,0.00714479]
[1722091957260,1.4398988,69062.0,69061.0,0.00714479]
[1722091957449,1.41398432,69062.0,69061.0,0.00714479]
[1722091957659,1.42798432,69062.0,69061.0,0.00714479]
[1722091957892,1.41398432,69062.0,69061.0,0.00714479]
[1722091958032,1.12439032,69062.0,69061.0,0.00714479]
[1722091958221,1.13839032,69062.0,69061.0,0.00714479]
[1722091959474,1.41398432,69062.0,69061.0,0.00714479]
[1722091959711,1.12439032,69062.0,69061.0,0.00714479]
[1722091959924,1.18919719,69062.0,69061.0,0.00714479]
[1722091960128,1.47879119,69062.0,69061.0,0.00714479]
[1722091960329,1.46479119,69062.0,69061.0,0.00714479]
[1722091960646,1.12439032,69062.0,69061.0,0.00714479]
[1722091960774,1.15239032,69062.0,69061.0,0.00714479]
[1722091961192,1.13839032,69062.0,69061.0,0.15164479]
[1722091961405,1.15239032,69062.0,69061.0,0.15164479]
[1722091961684,1.15239032,69062.0,69061.0,0.08914479]
[1722091962610,0.84879632,69062.0,69061.0,0.08914479]
[1722091963050,1.15239032,69062.0,69061.0,0.08914479]
[1722091963454,1.13839032,69062.0,69061.0,0.00714479]
[1722091963847,1.15239032,69062.0,69061.0,0.00714479]
[1722091965312,0.86279632,69062.0,69061.0,0.00714479]
[1722091966210,1.15239032,69062.0,69061.0,0.00714479]
[1722091970347,1.1751112,69062.0,69061.0,0.00714479]
[1722091971274,1.2598112,69062.0,69061.0,0.00714479]
[1722091972482,1.2606512,69062.0,69061.0,0.00714479]
[1722091973639,1.38831337,69062.0,69061.0,0.00714479]
[1722091973768,1.2606512,69062.0,69061.0,0.00714479]
[1722091975321,1.1759512,69062.0,69061.0,0.00714479]
[1722091978901,0.05156088,69062.0,69061.0,0.14834479]
[1722091979133,0.19635788,69062.0,69061.0,0.14834479]
[1722091979330,0.05156088,69062.0,69061.0,0.17872534]
[1722091979572,0.05156088,69062.0,69061.0,0.16362427]
[1722091979768,0.05156088,69062.0,69061.0,0.17872812]
[1722091980172,0.06028876,69062.0,69061.0,0.17872812]
[1722091980568,0.06728876,69062.0,69061.0,0.17872812]
[1722091980815,0.06028876,69062.0,69061.0,1.10776135]
[1722091981102,0.06028876,69062.0,69061.0,0.81816235]
[1722091981311,0.06028876,69062.0,69061.0,0.16344864]
[1722091981841,0.49467976,69062.0,69061.0,0.10254864]
[1722091982041,1.07386776,69062.0,69061.0,0.10254864]
[1722091982242,1.07986776,69062.0,69061.0,0.10254864]
[1722091982443,1.07386776,69062.0,69061.0,0.08744479]
[1722091982871,1.07486776,69062.0,69061.0,0.08944479]
[1722091983046,1.07486776,69062.0,69061.0,0.00714479]
[1722091983508,1.08086776,69062.0,69061.0,0.00714479]
[1722091985622,0.06028876,69062.0,69061.0,0.14834479]
[1722091985823,0.20508576,69062.0,69061.0,0.16343263]
[1722091986022,0.50167976,69062.0,69061.0,0.16343263]
[1722091986254,0.49467976,69062.0,69061.0,0.16343263]
[1722091986611,0.50767976,69062.0,69061.0,0.14834479]
[1722091987206,0.49467976,69062.0,69061.0,0.14834479]
[1722091987597,0.50167976,69062.0,69061.0,0.14834479]
[1722091988813,0.06728876,69062.0,69061.0,0.14834479]
[1722091989013,0.06728876,69062.0,69061.0,0.17824325]
[1722091989385,0.21208576,69062.0,69061.0,0.17824325]
[1722091989696,0.21208576,69062.0,69061.0,0.14834479]
[1722091990177,0.17535788,69062.0,69061.0,0.14834479]
[1722091991202,0.46495188,69062.0,69061.0,0.14834479]
[1722091992077,0.47395188,69062.0,69061.0,0.14834479]
[1722091993678,0.49667993,69062.0,69061.0,0.14834479]
[1722091994111,0.78627393,69062.0,69061.0,0.14834479]
[1722091994261,1.07586793,69062.0,69061.0,0.00714479]
[1722091997177,1.36546193,69062.0,69061.0,0.00714479]
[1722091997632,1.50586193,69062.0,69061.0,0.00714479]
[1722092000807,1.53086193,69062.0,69061.0,0.00714479]
[1722092001359,1.54168553,69062.0,69061.0,0.00714479]
[1722092001641,1.25209153,69062.0,69061.0,0.00714479]
[1722092001945,1.25209153,69062.0,69061.0,0.09849927]
[1722092001946,1.18669153,69062.0,69061.0,0.09849927]
[1722092002145,1.18669153,69062.0,69061.0,0.08954479]
[1722092002146,1.17586793,69062.0,69061.0,0.08954479]
[1722092002298,0.88627393,69062.0,69061.0,0.08954479]
[1722092002732,1.17586793,69062.0,69061.0,0.08954479]
[1722092003138,1.15313988,69062.0,69061.0,0.00714479]
[1722092003940,0.86354588,69062.0,69061.0,0.00714479]
[1722092004140,0.76354588,69062.0,69061.0,0.02238927]
[1722092006089,0.76354588,69062.0,69061.0,0.00714479]
[1722092006311,0.78627492,69062.0,69061.0,0.00714479]
[1722092006680,0.76354588,69062.0,69061.0,0.00714479]
[1722092009786,1.48213388,69062.0,69061.0,0.00714479]
[1722092009959,1.60486345,69062.0,69061.0,0.00714479]
[1722092010181,1.75512302,69062.0,69061.0,0.00714479]
[1722092010343,1.73239345,69062.0,69061.0,0.00714479]
[1722092010549,1.58213388,69062.0,69061.0,0.00714479]
[1722092011067,1.57313388,69062.0,69061.0,0.00714479]
[1722092011430,1.58013388,69062.0,69061.0,0.00714479]
[1722092012173,1.59413388,69062.0,69061.0,0.00714479]
[1722092013582,1.58013388,69062.0,69061.0,0.00714479]
[1722092014606,1.6028646,69062.0,69061.0,0.00714479]
[1722092014817,1.5888646,69062.0,69061.0,0.00714479]
[1722092015030,1.56613388,69062.0,69061.0,0.00714479]
[1722092015250,1.21393988,69062.0,69061.0,0.00714479]
[1722092015417,1.22793988,69062.0,69061.0,0.00714479]
[1722092015974,1.19993988,69062.0,69061.0,0.00714479]
[1722092016198,1.21393988,69062.0,69061.0,0.00714479]
[1722092016404,1.22793988,69062.0,69061.0,0.00714479]
[1722092017435,1.16513988,69062.0,69061.0,0.00714479]
[1722092017838,0.87554588,69062.0,69061.0,0.01614927]
[1722092018016,0.89827577,69062.0,69061.0,0.06974479]
[1722092018224,1.18786977,69062.0,69061.0,0.06974479]
[1722092018810,1.17386977,69062.0,69061.0,0.00714479]
[1722092019645,1.17286977,69062.0,69061.0,0.00714479]
[1722092020000,1.18686977,69062.0,69061.0,0.00714479]
[1722092020587,0.60768177,69062.0,69061.0,0.01630469]
[1722092021000,0.60768177,69062.0,69061.0,0.00714479]
[1722092021460,0.89727577,69062.0,69061.0,0.00714479]
[1722092022473,0.96007577,69062.0,69061.0,0.00714479]
[1722092022676,1.24966977,69062.0,69061.0,0.00714479]
[1722092023106,1.22693988,69062.0,69061.0,0.00714479]
[1722092026346,1.24966909,69062.0,69061.0,0.00714479]
[1722092027798,0.89727509,69062.0,69061.0,0.00714479]
[1722092028277,1.18686909,69062.0,69061.0,0.00714479]
[1722092029257,0.89727509,69062.0,69061.0,0.00714479]
[1722092030924,0.87454588,69062.0,69061.0,0.00714479]
[1722092033298,1.16413988,69062.0,69061.0,0.00714479]
[1722092033857,1.18686934,69062.0,69061.0,0.00714479]
[1722092035493,1.16413988,69062.0,69061.0,0.00714479]
[1722092035720,0.87454588,69062.0,69061.0,0.00714479]
[1722092038915,0.8972758,69062.0,69061.0,0.00714479]
[1722092039690,1.1868698,69062.0,69061.0,0.00714479]
[1722092039835,0.8972758,69062.0,69061.0,0.00714479]
[1722092040039,1.1868698,69062.0,69061.0,0.00714479]
[1722092040253,0.8972758,69062.0,69061.0,0.00714479]
[1722092041036,1.1868698,69062.0,69061.0,0.00714479]
[1722092043141,1.2715698,69062.0,69061.0,0.00714479]
[1722092044227,1.3352698,69062.0,69061.0,0.00714479]
[1722092044629,1.6248638,69062.0,69061.0,0.00714479]
[1722092045469,1.6108638,69062.0,69061.0,0.00714479]
[1722092046502,0.724132,69048.0,69047.0,0.08744496]
[1722092047420,0.20026088,69062.0,69047.0,0.08744496]
[1722092047421,0.20026088,69062.0,69049.0,0.0756]
[1722092047593,0.144819,69052.0,69050.0,0.0015542]